bitfinex/quotes_SOLUSD_20250901
["timestamp","ask_amount","ask_price","bid_price","bid_amount"]
[1756762294748,0.03,196.15,196.14,0.69000001]
[1756762295441,9.50395612,196.15,196.14,1e-08]
[1756762295609,0.03,196.15,196.14,1e-08]
[1756762295813,4.40581695,196.15,196.14,1e-08]
[1756762296743,4.40581695,196.15,196.14,0.71000001]
[1756762296744,0.03,196.15,196.14,0.71000001]
[1756762297367,0.03,196.15,196.14,62.71000001]
[1756762297782,9.50395612,196.15,196.14,1e-08]
[1756762298977,4.40581695,196.15,196.14,1e-08]
[1756762299349,9.50395612,196.15,196.14,1e-08]
[1756762302378,39.59006582,196.15,196.14,1e-08]
[1756762302548,65.92942283,196.15,196.14,1e-08]
[1756762302944,65.92942283,196.15,196.13,1e-08]
[1756762303249,7.75192665,196.14,196.13,1e-08]
[1756762303737,8.46192665,196.14,196.13,1e-08]
[1756762303942,4.0861097,196.14,196.13,1e-08]
[1756762304141,13.59559401,196.13,196.12,1e-08]
[1756762304354,26.44617971,196.13,196.12,1e-08]
[1756762304582,27.15617971,196.13,196.12,1e-08]
[1756762305379,26.0,196.1,196.01,0.71]
[1756762305565,4.37581695,196.03,196.01,0.71]
[1756762305884,0.71,196.09,196.01,0.71]
[1756762306051,4.37581695,196.05,196.01,0.71]
[1756762306388,9.47630654,196.06,196.01,0.71]
[1756762306764,4.37581695,196.06,196.01,0.71]
[1756762307671,9.47635194,196.06,196.02,0.71]
[1756762307854,9.47635194,196.06,196.03,0.71]
[1756762308272,4.37581695,196.05,196.03,0.71]
[1756762308492,4.37581695,196.04,196.0,63.98620891]
[1756762308683,5.10076733,196.05,196.0,64.69620891]
[1756762308684,4.37581695,196.03,196.0,64.69620891]
[1756762308997,4.37581695,196.03,196.01,0.71]
[1756762309683,4.37581695,196.03,196.0,63.98620891]
[1756762310096,4.37581695,196.03,196.0,64.69620891]
[1756762310256,4.37581695,196.03,196.0,63.98620891]
[1756762310463,9.47719756,196.03,196.0,63.98620891]
[1756762310680,4.37581695,196.02,196.0,1.98620891]
[1756762312560,5.08581695,196.01,196.0,1.98620891]
[1756762312787,4.37581695,196.01,196.0,1.98620891]
[1756762313583,4.37581695,196.01,196.0,63.98620891]
[1756762313964,0.71,196.05,196.0,63.98620891]
[1756762314284,0.71,196.05,196.0,1.98620891]
[1756762314285,4.37581695,196.01,196.0,1.98620891]
[1756762314663,9.47759747,196.01,196.0,1.98620891]
[1756762315079,10.18759747,196.01,196.0,1.98620891]
[1756762316258,5.81178052,196.01,196.0,1.98620891]
[1756762316478,10.18759747,196.01,196.0,1.98620891]
[1756762316962,13.57395508,196.01,196.0,1.98620891]
[1756762317478,27.16954909,196.01,196.0,1.98620891]
[1756762317879,22.79373214,196.01,196.0,1.98620891]
[1756762318083,3.38635761,196.01,196.0,1.98620891]
[1756762318271,33.76217456,196.01,196.0,1.98620891]
[1756762318472,0.71,196.04,196.0,1.98620891]
[1756762318787,4.37581695,196.03,196.0,1.98620891]
[1756762318993,0.71,196.04,196.0,1.98620891]
[1756762318994,3.38175533,196.02,196.0,1.98620891]
[1756762319165,4.37581695,196.01,196.0,1.98620891]
[1756762319663,4.37581695,196.03,196.0,1.98620891]
[1756762320002,4.37581695,196.01,196.0,1.98620891]
[1756762320497,4.37581695,196.02,196.0,1.98620891]
[1756762320795,9.47721459,196.03,196.0,2.10620891]
[1756762321094,4.37581695,196.01,196.0,2.10620891]
[1756762321398,5.08581695,196.01,196.0,2.10620891]
[1756762321777,8.46409562,196.01,196.0,2.10620891]
[1756762321987,34.46409562,196.01,196.0,2.10620891]
[1756762322171,38.83991257,196.01,195.94,0.1]
[1756762322368,4.37581695,195.96,195.94,0.1]
[1756762322578,4.37581695,195.96,195.92,0.71]
[1756762322904,4.37581695,195.94,195.9,0.71]
[1756762323074,4.37581695,195.94,195.91,0.71]
[1756762323385,4.37581695,195.92,195.87,0.71]
[1756762323600,4.37581695,195.9,195.88,0.71]
[1756762323769,5.81334268,195.95,195.88,0.71]
[1756762323967,4.37581695,195.9,195.88,0.71]
[1756762324164,4.37581695,195.9,195.86,0.71]
[1756762324371,4.37581695,195.89,195.86,0.71]
[1756762324772,4.37581695,195.89,195.85,0.05]
[1756762324961,4.37581695,195.89,195.86,0.71]
[1756762325162,4.37581695,195.87,195.85,0.05]
[1756762325380,4.37581695,195.86,195.85,0.05]
[1756762325591,5.10386362,195.93,195.86,0.66]
[1756762325777,4.37581695,195.9,195.86,0.66]
[1756762325983,4.37581695,195.87,195.85,0.05]
[1756762326187,7.15016062,195.93,195.85,0.05]
[1756762326491,4.37581695,195.87,195.85,0.05]
[1756762326795,14.15050697,195.93,195.86,0.66]
[1756762326970,4.37581695,195.89,195.85,0.05]
[1756762327308,4.37581695,195.89,195.85,0.71]
[1756762327596,4.37581695,195.88,195.85,0.05]
[1756762327805,4.37581695,195.88,195.85,0.71]
[1756762328006,4.37581695,195.9,195.85,0.05]
[1756762328174,4.37581695,195.9,195.85,62.05]
[1756762328374,4.37581695,195.89,195.85,62.05]
[1756762328592,4.37581695,195.89,195.86,0.66]
[1756762328797,4.37581695,195.89,195.85,62.05]
[1756762329178,9.48076319,195.89,195.85,62.71]
[1756762329495,4.37581695,195.88,195.85,62.05]
[1756762329708,5.09581695,195.88,195.85,62.05]
[1756762329904,4.37581695,195.87,195.85,0.05]
[1756762330201,4.37581695,195.86,195.85,0.05]
[1756762330605,5.09581695,195.86,195.85,0.05]
[1756762330817,0.72,195.86,195.85,0.05]
[1756762330978,10.20150468,195.86,195.85,0.05]
[1756762331178,23.79709869,195.86,195.85,0.05]
[1756762331397,27.2631698,195.86,195.85,0.05]
[1756762331606,10.20150468,195.86,195.85,0.05]
[1756762331907,15.97965396,195.86,195.85,0.05]
[1756762332089,29.57524797,195.86,195.85,0.05]
[1756762332286,33.18414389,195.86,195.85,0.05]
[1756762332671,40.52786566,195.86,195.85,0.05]
[1756762333180,40.52786566,195.86,195.84,1e-08]
[1756762333181,19.23968711,195.85,195.84,1e-08]
[1756762333399,27.25056932,195.85,195.84,1e-08]
[1756762333580,32.34638627,195.85,195.84,1e-08]
[1756762333982,58.34638627,195.85,195.84,1e-08]
[1756762334305,53.97056932,195.85,195.84,1e-08]
[1756762334506,32.34638627,195.85,195.84,1e-08]
[1756762334701,32.34638627,195.85,195.83,1e-08]
[1756762334908,49.07762011,195.84,195.83,1e-08]
[1756762335092,49.79762011,195.84,195.83,1e-08]
[1756762335584,2.046926,195.87,195.83,0.66000001]
[1756762335785,4.37581695,195.85,195.83,1e-08]
[1756762335993,4.37581695,195.84,195.83,1e-08]
[1756762337410,2.046926,195.87,195.83,5.03581696]
[1756762337720,4.37581695,195.87,195.83,1e-08]
[1756762337884,4.37581695,195.84,195.83,1e-08]
[1756762338293,13.59559401,195.88,195.83,1e-08]
[1756762338543,14.31559401,195.88,195.83,1e-08]
[1756762338820,4.37581695,195.85,195.83,1e-08]
[1756762338985,5.10568773,195.86,195.83,1e-08]
[1756762339192,4.37581695,195.84,195.83,1e-08]
[1756762339706,5.09581695,195.84,195.83,1e-08]
[1756762339892,5.09581695,195.84,195.83,0.12000001]
[1756762340097,5.12581695,195.84,195.83,0.12000001]
[1756762341011,36.2320261,195.84,195.83,0.12000001]
[1756762341206,49.82762011,195.84,195.83,0.12000001]
[1756762341410,45.45180316,195.84,195.83,1e-08]
[1756762341610,55.59605111,195.84,195.83,1e-08]
[1756762342411,26.0,195.8,195.73,5.0]
[1756762342614,4.37581695,195.76,195.73,5.0]
[1756762343328,5.10851228,195.76,195.73,5.0]
[1756762343506,4.37581695,195.76,195.73,5.0]
[1756762343696,4.37581695,195.76,195.73,5.66]
[1756762343900,0.72,195.8,195.73,5.66]
[1756762344117,4.37581695,195.76,195.73,5.66]
[1756762344320,4.37581695,195.77,195.74,0.66]
[1756762344538,4.37581695,195.78,195.74,0.66]
[1756762344906,4.37581695,195.77,195.74,0.66]
[1756762345106,4.37581695,195.78,195.74,0.66]
[1756762345337,5.09581695,195.77,195.73,5.0]
[1756762345508,4.37581695,195.77,195.73,5.0]
[1756762345708,4.37581695,195.77,195.74,0.66]
[1756762345906,5.82733165,195.8,195.74,0.66]
[1756762346213,26.72,195.82,195.74,4.37581695]
[1756762346414,4.37581695,195.81,195.75,0.66]
[1756762346616,26.0,195.82,195.75,5.03581695]
[1756762346922,4.37581695,195.81,195.76,5.03581695]
[1756762347120,4.37581695,195.81,195.77,0.66]
[1756762347652,4.37581695,195.8,195.73,48.12]
[1756762347807,4.37581695,195.79,195.74,0.66]
[1756762348006,4.37581695,195.79,195.75,0.66]
[1756762348528,4.37581695,195.78,195.73,5.0]
[1756762348730,4.37581695,195.76,195.73,5.0]
[1756762349032,4.37581695,195.75,195.73,5.0]
[1756762349232,30.37581695,195.8,195.74,0.66]
[1756762349233,41.359017,195.8,195.74,0.66]
[1756762349435,4.37581695,195.77,195.74,0.66]
[1756762349607,4.37581695,195.77,195.73,5.0]
[1756762349812,4.37581695,195.75,195.73,5.0]
[1756762350340,4.37581695,195.74,195.73,5.0]
[1756762352242,5.09581695,195.74,195.73,5.0]
[1756762352634,5.10805297,195.77,195.73,5.0]
[1756762352825,4.37581695,195.75,195.73,5.0]
[1756762353023,4.37581695,195.76,195.73,5.66]
[1756762353227,5.10779093,195.78,195.73,5.66]
[1756762353525,5.10779093,195.78,195.74,0.66]
[1756762353716,4.37581695,195.77,195.74,0.66]
[1756762354242,4.37581695,195.78,195.75,0.66]
[1756762354422,4.37581695,195.78,195.73,5.0]
[1756762354740,4.37581695,195.78,195.74,0.66]
[1756762354915,4.37581695,195.78,195.73,5.0]
[1756762355111,36.155143,195.83,195.75,4.37581695]
[1756762355440,4.37581695,195.78,195.74,0.67]
[1756762355642,35.485143,195.83,195.74,4.37581695]
[1756762355810,4.37581695,195.79,195.73,9.37581695]
[1756762356014,4.37581695,195.77,195.73,5.0]
[1756762356214,4.37581695,195.76,195.73,5.0]
[1756762356444,4.37581695,195.75,195.73,5.0]
[1756762356615,0.67,195.79,195.73,5.67]
[1756762356938,4.37581695,195.76,195.73,5.67]
[1756762357255,4.37581695,195.75,195.73,5.0]
[1756762357417,9.48463476,195.74,195.73,5.0]
[1756762357621,4.37581695,195.74,195.73,5.0]
[1756762359027,5.04581695,195.74,195.73,5.12]
[1756762359449,5.77881781,195.74,195.73,5.12]
[1756762359628,5.10881781,195.74,195.73,5.12]
[1756762359828,9.48463476,195.74,195.73,5.12]
[1756762360839,4.37581695,195.74,195.73,5.12]
[1756762361049,9.48463476,195.74,195.73,5.12]
[1756762361243,4.37581695,195.74,195.73,5.12]
[1756762361446,31.04581695,195.8,195.73,5.79]
[1756762361640,4.37581695,195.76,195.73,5.79]
[1756762362528,5.12,195.79,195.73,10.89902434]
[1756762362723,5.12,195.79,195.73,5.12]
[1756762362724,4.37581695,195.75,195.73,5.12]
[1756762362923,4.37581695,195.74,195.73,5.12]
[1756762363150,5.77725265,195.8,195.73,5.79]
[1756762363346,4.37581695,195.76,195.73,5.12]
[1756762363529,5.10809869,195.77,195.73,5.12]
[1756762363728,4.37581695,195.76,195.73,5.12]
[1756762364156,4.37581695,195.75,195.73,5.12]
[1756762364542,0.67,195.75,195.73,5.12]
[1756762364741,4.37581695,195.74,195.73,5.12]
[1756762365432,4.37581695,195.75,195.73,5.12]
[1756762365635,4.37581695,195.74,195.73,5.12]
[1756762365832,4.37581695,195.75,195.73,5.12]
[1756762366132,4.37581695,195.76,195.73,5.12]
[1756762366736,0.67,195.82,195.74,0.67]
[1756762366944,4.37581695,195.79,195.74,0.67]
[1756762367126,4.37581695,195.78,195.74,0.67]
[1756762367738,10.45069118,195.82,195.75,0.67]
[1756762368043,3.36777521,195.81,195.75,0.67]
[1756762368249,4.37581695,195.8,195.75,0.67]
[1756762368560,4.37581695,195.78,195.73,10.22903284]
[1756762368765,4.37581695,195.78,195.74,0.67]
[1756762369772,5.343709,195.82,195.74,0.67]
[1756762369773,5.10725316,195.8,195.74,0.67]
[1756762369973,7.75185536,195.79,195.75,0.67]
[1756762370145,0.03,195.83,195.73,5.12]
[1756762370146,5.04581695,195.78,195.73,5.12]
[1756762370349,7.75280611,195.77,195.73,5.79]
[1756762370551,4.37581695,195.77,195.73,5.12]
[1756762371160,4.37581695,195.77,195.73,5.79]
[1756762371366,4.37581695,195.77,195.73,5.12]
[1756762371746,5.77783474,195.78,195.73,5.12]
[1756762371943,7.75483357,195.77,195.73,5.12]
[1756762372248,4.37581695,195.76,195.73,5.12]
[1756762372782,9.48415868,195.76,195.73,5.12]
[1756762372967,5.10834173,195.76,195.73,5.12]
[1756762373156,10.15389045,195.77,195.73,5.12]
[1756762373353,3.38202722,195.76,195.73,5.12]
[1756762373967,5.04581695,195.75,195.73,5.12]
[1756762374179,0.67,195.74,195.73,5.12]
[1756762374378,4.37581695,195.76,195.73,5.12]
[1756762374566,3.38301774,195.75,195.73,5.12]
[1756762374766,3.38301774,195.75,195.74,4.37581695]
[1756762374984,3.38301774,195.79,195.74,5.04581695]
[1756762375169,8.49005735,195.81,195.77,4.37581695]
[1756762375371,3.38301774,195.8,195.75,47.35581695]
[1756762375686,4.05301774,195.8,195.75,48.02581695]
[1756762376383,4.05301774,195.8,195.75,110.02581695]
[1756762376887,3.38301774,195.8,195.76,0.67]
[1756762377054,3.38301774,195.81,195.79,4.37581695]
[1756762377254,3.41301774,195.83,195.79,4.37581695]
[1756762377576,8.51954197,195.83,195.79,0.67]
[1756762377765,3.38301774,195.82,195.79,0.67]
[1756762377963,0.03,195.83,195.78,4.37581695]
[1756762378192,3.41301774,195.83,195.78,5.04581695]
[1756762378393,3.41301774,195.83,195.82,4.37581695]
[1756762378565,0.03,195.83,195.82,4.37581695]
[1756762378761,0.03,195.83,195.8,0.67]
[1756762378961,0.03,195.83,195.81,42.96]
[1756762379386,0.03,195.83,195.8,47.33581695]
[1756762379587,0.03,195.83,195.8,42.96]
[1756762379790,0.03,195.83,195.8,43.63]
[1756762380362,0.03,195.83,195.8,48.00581695]
[1756762380565,0.03,195.83,195.8,43.63]
[1756762380864,0.03,195.83,195.8,42.96]
[1756762381070,3.41301774,195.83,195.8,42.96]
[1756762381382,3.41301774,195.83,195.79,4.37581695]
[1756762381683,7.78883469,195.83,195.79,42.94]
[1756762382001,0.03,195.83,195.8,0.67]
[1756762382490,0.03,195.83,195.79,47.31581695]
[1756762382790,0.03,195.83,195.79,43.61]
[1756762383291,8.45532527,195.83,195.8,42.94]
[1756762383489,3.37950832,195.82,195.8,42.94]
[1756762383864,8.42532527,195.82,195.79,42.92]
[1756762384094,4.37581695,195.82,195.75,62.0]
[1756762384275,5.04581695,195.81,195.75,62.0]
[1756762384595,5.04581695,195.81,195.76,42.92]
[1756762384596,3.38287367,195.8,195.76,42.92]
[1756762384780,3.38287367,195.8,195.76,47.29581695]
[1756762384986,8.42869062,195.8,195.76,42.92]
[1756762385183,0.67,195.8,195.76,42.92]
[1756762385394,4.37581695,195.81,195.76,43.6]
[1756762385965,4.37581695,195.81,195.77,0.68]
[1756762386191,4.37581695,195.81,195.76,47.29581695]
[1756762386392,0.67,195.8,195.76,47.29581695]
[1756762386582,4.05275684,195.8,195.76,42.92]
[1756762386780,10.15312495,195.8,195.76,42.92]
[1756762387099,0.67,195.79,195.76,42.92]
[1756762387398,9.48312495,195.8,195.77,42.9]
[1756762387604,4.37581695,195.78,195.73,5.12]
[1756762387897,3.38565677,195.77,195.74,42.9]
[1756762388681,8.43147372,195.78,195.74,42.9]
[1756762388983,12.86951114,195.77,195.74,42.9]
[1756762389177,10.15385437,195.77,195.74,42.9]
[1756762389381,10.15385437,195.77,195.73,5.12]
[1756762389578,8.43636833,195.76,195.74,42.9]
[1756762389774,5.10803742,195.77,195.74,42.9]
[1756762389986,3.39059452,195.76,195.74,42.9]
[1756762390889,5.10855683,195.75,195.74,42.9]
[1756762391073,4.37581695,195.8,195.74,47.95581695]
[1756762391272,3.39050535,195.79,195.74,47.95581695]
[1756762391474,3.39050535,195.79,195.75,0.68]
[1756762391673,3.39050535,195.79,195.76,0.68]
[1756762392084,3.39050535,195.79,195.77,0.68]
[1756762392482,3.39050535,195.79,195.75,5.05581695]
[1756762392796,3.39050535,195.79,195.76,0.68]
[1756762393005,5.10777403,195.78,195.76,0.68]
[1756762393597,5.10777403,195.78,195.76,62.68]
[1756762393801,4.37581695,195.8,195.76,62.0]
[1756762393977,3.38836524,195.79,195.76,62.0]
[1756762394175,3.38836524,195.79,195.76,62.68]
[1756762394378,5.10699147,195.81,195.77,0.68]
[1756762394583,3.3885107,195.8,195.78,42.86]
[1756762394990,8.49595787,195.8,195.78,42.86]
[1756762395315,5.10744717,195.8,195.78,43.54]
[1756762395613,9.48275956,195.82,195.78,42.86]
[1756762395823,3.3902343,195.81,195.78,43.54]
[1756762396408,3.3902343,195.81,195.78,42.86]
[1756762396595,3.3902343,195.81,195.79,0.68]
[1756762396992,8.49732373,195.81,195.78,42.86]
[1756762397191,3.3902343,195.8,195.78,43.54]
[1756762397613,5.10708943,195.81,195.78,43.54]
[1756762398617,5.10708943,195.81,195.79,0.68]
[1756762398998,5.13646989,195.83,195.78,42.86]
[1756762399223,3.38983184,195.82,195.79,0.68]
[1756762399606,3.38983184,195.82,195.78,47.23581695]
[1756762399922,3.38983184,195.82,195.79,0.68]
[1756762400113,3.38983184,195.82,195.78,42.86]
[1756762400516,3.38983184,195.82,195.79,0.68]
[1756762400701,3.41983184,195.83,195.79,0.68]
[1756762400901,0.03,195.83,195.81,4.37581695]
[1756762401133,0.03,195.83,195.82,42.82]
[1756762402137,5.13646989,195.83,195.82,42.82]
[1756762403338,0.03,195.83,195.82,42.82]
[1756762403850,0.03,195.83,195.82,43.5]
[1756762406205,0.03,195.83,195.82,104.82]
[1756762406419,0.03,195.83,195.82,105.5]
[1756762410562,0.7,195.83,195.82,42.76]
[1756762410764,0.7,195.83,195.78,0.68]
[1756762410938,8.46643321,195.83,195.79,42.76]
[1756762411134,8.46643321,195.83,195.78,0.68]
[1756762411135,0.67,195.82,195.75,0.68]
[1756762411338,11.90698443,195.81,195.75,4.37581695]
[1756762411538,5.10751315,195.79,195.76,42.76]
[1756762411742,9.4833301,195.79,195.77,42.76]
[1756762412039,0.67,195.78,195.74,0.12]
[1756762412239,0.67,195.77,195.75,42.74]
[1756762412558,0.67,195.77,195.74,0.12]
[1756762412754,0.67,195.77,195.75,42.74]
[1756762413067,0.67,195.77,195.76,42.74]
[1756762413256,0.67,195.77,195.74,0.12]
[1756762413455,5.77829587,195.76,195.75,42.74]
[1756762414738,5.10829587,195.76,195.75,42.74]
[1756762415237,5.76829587,195.76,195.75,0.12]
[1756762415440,13.53005526,195.76,195.75,0.12]
[1756762415649,17.29172256,195.76,195.75,0.12]
[1756762416667,7.80760974,195.76,195.75,0.12]
[1756762416851,9.15423831,195.76,195.75,0.12]
[1756762417162,3.38594244,195.76,195.75,0.12]
[1756762417372,4.23179889,195.81,195.75,0.8]
[1756762417373,5.10751315,195.79,195.75,0.8]
[1756762417599,15.358231,195.8,195.76,42.72]
[1756762417600,8.49367381,195.78,195.76,42.72]
[1756762417762,5.10791585,195.78,195.76,42.72]
[1756762418372,0.66,195.81,195.76,42.72]
[1756762418373,4.37581695,195.8,195.76,104.72]
[1756762418673,3.38615133,195.79,195.76,104.72]
[1756762419174,7.76196828,195.8,195.76,105.4]
[1756762419376,7.15148773,195.79,195.76,105.4]
[1756762419576,3.38615133,195.79,195.76,105.4]
[1756762419990,3.38615133,195.79,195.76,104.72]
[1756762420296,4.40581695,195.83,195.77,5.05581695]
[1756762420470,3.76455328,195.82,195.77,5.05581695]
[1756762420668,8.49524363,195.82,195.78,5.05581695]
[1756762420893,3.38830358,195.81,195.79,42.7]
[1756762422083,5.10694005,195.82,195.79,42.7]
[1756762422788,4.40581695,195.83,195.79,42.7]
[1756762423000,5.13655696,195.83,195.8,0.68]
[1756762423167,5.13655696,195.83,195.81,42.68]
[1756762423971,0.03,195.83,195.81,42.68]
[1756762424482,3.41567863,195.83,195.81,42.68]
[1756762425706,5.10673067,195.82,195.81,42.68]
[1756762425874,0.03,195.83,195.81,47.73581695]
[1756762426071,0.03,195.83,195.82,5.05581695]
[1756762426276,0.03,195.83,195.82,67.05581695]
[1756762427577,0.03,195.83,195.82,72.16254762]
[1756762428689,0.03,195.83,195.82,85.75814163]
[1756762429215,0.03,195.83,195.82,23.75814163]
[1756762429710,0.66,195.96,195.87,13.59559401]
[1756762429914,3.38019399,195.97,195.94,4.37581695]
[1756762430210,4.04019399,195.98,195.95,42.64]
[1756762430628,4.04019399,195.98,195.95,47.01581695]
[1756762430629,3.38019399,195.98,195.95,47.01581695]
[1756762430785,4.04019399,196.0,195.95,47.01581695]
[1756762430988,4.04019399,196.0,195.96,4.37581695]
[1756762431193,4.04019399,196.0,195.97,42.62]
[1756762431495,9.14224976,196.0,195.97,42.62]
[1756762431703,5.10172879,196.02,195.97,42.62]
[1756762431891,4.03381259,196.01,195.97,42.62]
[1756762432210,3.37381259,196.01,195.97,108.99581695]
[1756762432719,3.37381259,196.01,195.98,4.37581695]
[1756762433034,3.37381259,196.02,196.0,4.37581695]
[1756762433193,0.2,196.03,196.01,42.6]
[1756762433595,5.30130729,196.03,196.01,42.6]
[1756762434013,5.30130729,196.03,195.97,62.0]
[1756762434300,5.03581695,196.02,195.98,42.6]
[1756762434499,0.66,196.01,195.98,42.6]
[1756762434694,4.37581695,196.02,195.98,42.6]
[1756762434912,0.66,196.01,195.98,42.6]
[1756762435323,0.66,196.0,195.97,62.0]
[1756762435529,4.37581695,195.98,195.92,5.05581695]
[1756762435732,10.13863881,195.97,195.92,0.68]
[1756762435942,10.13863881,195.97,195.93,42.58]
[1756762436257,0.66,195.96,195.93,42.58]
[1756762436440,0.66,195.96,195.94,42.58]
[1756762437530,0.66,195.96,195.95,42.58]
[1756762437717,5.76308226,195.96,195.95,42.58]
[1756762438122,5.76308226,195.96,195.91,4.37581695]
[1756762438313,5.76308226,195.96,195.92,42.56]
[1756762438514,10.13889921,195.96,195.92,104.56]
[1756762438714,0.66,195.95,195.92,104.56]
[1756762439244,5.03581695,195.95,195.92,62.0]
[1756762439421,4.37581695,195.95,195.89,5.05581695]
[1756762439620,4.37581695,195.95,195.9,46.91581695]
[1756762439824,5.10360314,195.94,195.9,47.59581695]
[1756762440037,9.47913731,195.96,195.91,5.05581695]
[1756762440242,5.10332036,195.96,195.92,0.68]
[1756762440553,5.10332036,195.96,195.93,42.54]
[1756762440923,9.47913731,195.96,195.93,42.54]
[1756762441128,0.66,195.95,195.88,0.68]
[1756762441363,4.37581695,195.89,195.84,0.68]
[1756762441521,4.37581695,195.87,195.81,41.99581695]
[1756762441722,4.37581695,195.87,195.82,42.54]
[1756762441953,5.10568773,195.86,195.81,41.99581695]
[1756762442157,0.66,195.85,195.82,42.54]
[1756762442364,5.10568773,195.86,195.82,104.54]
[1756762442562,5.03581695,195.85,195.82,62.0]
[1756762442854,5.03581695,195.85,195.81,36.94]
[1756762442855,0.66,195.84,195.83,42.52]
[1756762443032,5.03581695,195.84,195.81,0.12]
[1756762443363,17.86990707,195.86,195.81,0.12]
[1756762443364,4.37581695,195.82,195.81,0.12]
[1756762443527,4.37581695,195.82,195.79,0.12]
[1756762443729,4.37581695,195.8,195.79,0.12]
[1756762443932,9.48306924,195.8,195.79,1e-08]
[1756762444133,5.76725229,195.8,195.79,1e-08]
[1756762444331,10.14306924,195.8,195.79,1e-08]
[1756762445648,27.28701693,195.8,195.75,1e-08]
[1756762445858,9.48411282,195.76,195.75,1e-08]
[1756762446357,10.17411282,195.76,195.75,1e-08]
[1756762446831,5.10829587,195.76,195.75,1e-08]
[1756762447046,5.79829587,195.76,195.75,1e-08]
[1756762447638,10.17411282,195.76,195.75,1e-08]
[1756762448732,10.17411282,195.76,195.73,5.12]
[1756762449061,5.06581695,195.75,195.74,1e-08]
[1756762449853,22.94576586,195.75,195.7,0.2978927]
[1756762450042,4.37581695,195.72,195.7,0.2978927]
[1756762451864,4.37581695,195.71,195.7,0.2978927]
[1756762452038,4.37581695,195.72,195.7,0.2978927]
[1756762452237,5.10907883,195.73,195.7,0.2978927]
[1756762452462,4.37581695,195.72,195.7,0.2978927]
[1756762453142,4.37581695,195.72,195.71,0.12]
[1756762453346,5.10871911,195.75,195.71,0.12]
[1756762453543,17.83720895,195.72,195.71,0.12]
[1756762454150,9.48515682,195.72,195.71,0.12]
[1756762454355,10.17515682,195.72,195.71,0.12]
[1756762455170,4.37581695,195.72,195.71,0.12]
[1756762455468,10.17515682,195.72,195.71,0.12]
[1756762459657,5.10933987,195.72,195.71,0.12]
[1756762459863,9.48515682,195.72,195.71,0.12]
[1756762460368,9.48515682,195.72,195.71,0.82]
[1756762460572,9.48515682,195.72,195.71,0.12]
[1756762461081,5.10933987,195.72,195.71,0.12]
[1756762461453,9.48489304,195.74,195.71,0.12]
[1756762462478,4.37581695,195.75,195.71,62.12]
[1756762462688,4.37581695,195.75,195.72,0.7]
[1756762462888,4.37581695,195.76,195.73,0.7]
[1756762464083,4.37581695,195.74,195.73,0.7]
[1756762464473,4.37581695,195.74,195.72,42.44]
[1756762464673,9.48437378,195.75,195.73,0.7]
[1756762464883,9.48437378,195.75,195.72,42.44]
[1756762465065,9.48437378,195.75,195.73,0.7]
[1756762466309,10.17437378,195.75,195.71,62.12]
[1756762466475,10.17437378,195.75,195.73,42.42]
[1756762466676,9.48437378,195.75,195.72,42.42]
[1756762467590,4.37581695,195.74,195.72,42.42]
[1756762467774,9.48437378,195.75,195.72,42.42]
[1756762467974,9.48437378,195.75,195.72,43.12]
[1756762468187,19.73247495,195.8,195.73,0.7]
[1756762468188,15.356658,195.8,195.73,0.7]
[1756762468373,5.06581695,195.8,195.75,4.37581695]
[1756762468568,5.06581695,195.8,195.76,42.4]
[1756762469093,4.37581695,195.8,195.76,42.4]
[1756762469291,4.37581695,195.8,195.77,0.7]
[1756762470077,9.48287715,195.81,195.77,0.7]
[1756762471293,9.51287715,195.81,195.76,42.4]
[1756762471473,9.51287715,195.81,195.77,0.7]